[Event "Titled Tuesday Blitz December 20 Early 2022"]
[White "Canche Cab, Marco Alexei"]
[Black "alexrustemov"]
[WhiteFideId "5116139"]
[WhiteElo "2004"]
[BlackElo "2891"]
[Result "0-1"]
[Round "05"]
[TimeControl "180+2"]
[Date "2022.12.20"]
[WhiteClock "0:00:04"]
[BlackClock "0:00:09"]

1. d4 {[%clk 0:03:00]}  g6 {[%clk 0:02:56]} 2. e4 {[%clk 0:02:57]}  Bg7 {[%clk 0:02:55]} 3. Nf3 {[%clk 0:02:57]}  d6 {[%clk 0:02:55]} 4. Bc4 {[%clk 0:02:57]}  c6 {[%clk 0:02:46]} 5. Bb3 {[%clk 0:02:50]}  Nf6 {[%clk 0:02:42]} 6. Qe2 {[%clk 0:02:49]}  O-O {[%clk 0:02:40]} 7. O-O {[%clk 0:02:46]}  Bg4 {[%clk 0:02:39]} 8. e5 {[%clk 0:02:37]}  Nd5 {[%clk 0:02:36]} 9. Nbd2 {[%clk 0:02:28]}  Nd7 {[%clk 0:02:28]} 10. h3 {[%clk 0:02:24]}  Bxf3 {[%clk 0:02:26]} 11. Nxf3 {[%clk 0:02:25]}  dxe5 {[%clk 0:02:25]} 12. dxe5 {[%clk 0:02:26]}  e6 {[%clk 0:02:26]} 13. Rd1 {[%clk 0:02:12]}  Qc7 {[%clk 0:02:24]} 14. c4 {[%clk 0:02:11]}  Ne7 {[%clk 0:02:14]} 15. Bf4 {[%clk 0:02:08]}  h6 {[%clk 0:02:08]} 16. Rd2 {[%clk 0:01:50]}  a5 {[%clk 0:02:03]} 17. Rad1 {[%clk 0:01:48]}  Rfd8 {[%clk 0:01:53]} 18. Bc2 {[%clk 0:01:31]}  Nf8 {[%clk 0:01:41]} 19. Rd6 {[%clk 0:01:25]}  g5 {[%clk 0:01:26]} 20. Nxg5 {[%clk 0:00:50]}  hxg5 {[%clk 0:01:24]} 21. Bxg5 {[%clk 0:00:50]}  Re8 {[%clk 0:01:20]} 22. Bf6 {[%clk 0:00:41]}  Neg6 {[%clk 0:01:15]} 23. Qh5 {[%clk 0:00:34]}  Qb6 {[%clk 0:00:58]} 24. Rd7 {[%clk 0:00:19]}  Bxf6 {[%clk 0:00:37]} 25. exf6 {[%clk 0:00:10]}  Qxb2 {[%clk 0:00:37]} 26. Bxg6 {[%clk 0:00:06]}  Nxg6 {[%clk 0:00:34]} 27. R1d4 {[%clk 0:00:05]}  Qb1+ {[%clk 0:00:22]} 28. Kh2 {[%clk 0:00:05]}  Qf5 {[%clk 0:00:22]} 29. Qxf5 {[%clk 0:00:02]}  exf5 {[%clk 0:00:22]} 30. Rxb7 {[%clk 0:00:02]}  Re6 {[%clk 0:00:20]} 31. Rdd7 {[%clk 0:00:01]}  Rxf6 {[%clk 0:00:20]} 32. Ra7 {[%clk 0:00:02]}  Rxa7 {[%clk 0:00:19]} 33. Rxa7 {[%clk 0:00:03]}  Ne5 {[%clk 0:00:17]} 34. Rxa5 {[%clk 0:00:01]}  Nxc4 {[%clk 0:00:17]} 35. Rc5 {[%clk 0:00:02]}  Nb6 {[%clk 0:00:15]} 36. Kg3 {[%clk 0:00:03]}  Kg7 {[%clk 0:00:15]} 37. Kf4 {[%clk 0:00:03]}  Kg6 {[%clk 0:00:15]} 38. g3 {[%clk 0:00:02]}  Re6 {[%clk 0:00:14]} 39. h4 {[%clk 0:00:02]}  Nd5+ {[%clk 0:00:14]} 40. Kf3 {[%clk 0:00:02]}  f6 {[%clk 0:00:12]} 41. a4 {[%clk 0:00:02]}  Nb4 {[%clk 0:00:11]} 42. a5 {[%clk 0:00:02]}  Nd3 {[%clk 0:00:11]} 43. Rc3 {[%clk 0:00:02]}  Ne5+ {[%clk 0:00:11]} 44. Kg2 {[%clk 0:00:02]}  Re7 {[%clk 0:00:11]} 45. f4 {[%clk 0:00:02]}  Ng4 {[%clk 0:00:11]} 46. Rxc6 {[%clk 0:00:02]}  Re2+ {[%clk 0:00:11]} 47. Kg1 {[%clk 0:00:03]}  Ra2 {[%clk 0:00:11]} 48. a6 {[%clk 0:00:04]}  Kh5 {[%clk 0:00:11]} 49. Rc5 {[%clk 0:00:03]}  Ne3 {[%clk 0:00:10]} 50. Rc6 {[%clk 0:00:02]}  Kg4 {[%clk 0:00:10]} 51. Rxf6 {[%clk 0:00:02]}  Kxg3 {[%clk 0:00:11]} 52. Rg6+ {[%clk 0:00:02]}  Kxf4 {[%clk 0:00:11]} 53. h5 {[%clk 0:00:03]}  Kf3 {[%clk 0:00:07]} 54. h6 {[%clk 0:00:03]}  Ra1+ {[%clk 0:00:07]} 55. Kh2 {[%clk 0:00:03]}  Ng4+ {[%clk 0:00:08]} 56. Rxg4 {[%clk 0:00:03]}  fxg4 {[%clk 0:00:08]} 57. h7 {[%clk 0:00:03]}  g3+ {[%clk 0:00:09]} 58. Kh3 {[%clk 0:00:04]}  Rh1# {[%clk 0:00:09]} 0-1


[Site "https://www.chess.com"]

[Event "Titled Tuesday Blitz December 20 Early 2022"]
[White "Carvalho, Heracles Elieser"]
[Black "Vesper, Horst"]
[WhiteFideId "22751114"]
[BlackFideId "24677159"]
[WhiteElo "1895"]
[BlackElo "2028"]
[Result "0-1"]
[Round "05"]
[TimeControl "180+2"]
[Date "2022.12.20"]
[WhiteClock "0:00:05"]
[BlackClock "0:00:14"]

1. e4 {[%clk 0:02:49]}  c5 {[%clk 0:02:58]} 2. Nc3 {[%clk 0:02:45]}  d6 {[%clk 0:02:58]} 3. g3 {[%clk 0:02:45]}  Nc6 {[%clk 0:02:57]} 4. Bg2 {[%clk 0:02:46]}  g6 {[%clk 0:02:57]} 5. d3 {[%clk 0:02:46]}  Bg7 {[%clk 0:02:58]} 6. f4 {[%clk 0:02:46]}  e6 {[%clk 0:02:53]} 7. Nf3 {[%clk 0:02:45]}  Nd4 {[%clk 0:02:53]} 8. O-O {[%clk 0:02:45]}  Ne7 {[%clk 0:02:52]} 9. Be3 {[%clk 0:02:39]}  O-O {[%clk 0:02:49]} 10. e5 {[%clk 0:02:40]}  Nxf3+ {[%clk 0:02:28]} 11. Qxf3 {[%clk 0:02:40]}  Nf5 {[%clk 0:02:18]} 12. Bf2 {[%clk 0:02:40]}  Nd4 {[%clk 0:02:13]} 13. Qd1 {[%clk 0:02:40]}  dxe5 {[%clk 0:01:54]} 14. fxe5 {[%clk 0:02:40]}  Bxe5 {[%clk 0:01:45]} 15. Ne4 {[%clk 0:02:41]}  Rb8 {[%clk 0:01:37]} 16. c3 {[%clk 0:02:32]}  Nc6 {[%clk 0:01:37]} 17. Bxc5 {[%clk 0:02:32]}  Re8 {[%clk 0:01:38]} 18. d4 {[%clk 0:02:20]}  Bg7 {[%clk 0:01:28]} 19. Bd6 {[%clk 0:02:14]}  Ra8 {[%clk 0:01:26]} 20. Bf4 {[%clk 0:02:09]}  Rf8 {[%clk 0:01:06]} 21. Qf3 {[%clk 0:01:27]}  f5 {[%clk 0:01:02]} 22. Nc5 {[%clk 0:01:21]}  Kh8 {[%clk 0:00:44]} 23. Rae1 {[%clk 0:01:21]}  Re8 {[%clk 0:00:44]} 24. Nd3 {[%clk 0:01:18]}  Bd7 {[%clk 0:00:42]} 25. Ne5 {[%clk 0:01:18]}  Nxe5 {[%clk 0:00:41]} 26. Bxe5 {[%clk 0:01:18]}  Bc6 {[%clk 0:00:42]} 27. Qf4 {[%clk 0:01:16]}  Bxg2 {[%clk 0:00:41]} 28. Kxg2 {[%clk 0:01:16]}  Qd5+ {[%clk 0:00:42]} 29. Kg1 {[%clk 0:01:16]}  Re7 {[%clk 0:00:37]} 30. a3 {[%clk 0:01:14]}  b5 {[%clk 0:00:35]} 31. Bxg7+ {[%clk 0:01:14]}  Kxg7 {[%clk 0:00:36]} 32. Qe5+ {[%clk 0:01:14]}  Qxe5 {[%clk 0:00:36]} 33. Rxe5 {[%clk 0:01:15]}  Rb8 {[%clk 0:00:36]} 34. Rfe1 {[%clk 0:01:06]}  Kf6 {[%clk 0:00:35]} 35. Rc5 {[%clk 0:00:59]}  Rb6 {[%clk 0:00:22]} 36. Ree5 {[%clk 0:00:40]}  Reb7 {[%clk 0:00:21]} 37. Rc8 {[%clk 0:00:31]}  a5 {[%clk 0:00:20]} 38. Re8 {[%clk 0:00:23]}  g5 {[%clk 0:00:17]} 39. Ra8 {[%clk 0:00:17]}  b4 {[%clk 0:00:17]} 40. Raxa5 {[%clk 0:00:16]}  bxc3 {[%clk 0:00:17]} 41. bxc3 {[%clk 0:00:16]}  Rb1+ {[%clk 0:00:18]} 42. Kf2 {[%clk 0:00:16]}  R7b2+ {[%clk 0:00:18]} 43. Re2 {[%clk 0:00:17]}  Rxe2+ {[%clk 0:00:17]} 44. Kxe2 {[%clk 0:00:17]}  Rb2+ {[%clk 0:00:17]} 45. Kd3 {[%clk 0:00:16]}  Rxh2 {[%clk 0:00:17]} 46. Ra7 {[%clk 0:00:13]}  h5 {[%clk 0:00:17]} 47. c4 {[%clk 0:00:09]}  Rg2 {[%clk 0:00:16]} 48. c5 {[%clk 0:00:08]}  Rxg3+ {[%clk 0:00:16]} 49. Kc4 {[%clk 0:00:09]}  h4 {[%clk 0:00:15]} 50. c6 {[%clk 0:00:09]}  Rg1 {[%clk 0:00:16]} 51. c7 {[%clk 0:00:07]}  Rc1+ {[%clk 0:00:15]} 52. Kb5 {[%clk 0:00:08]}  h3 {[%clk 0:00:15]} 53. c8=Q {[%clk 0:00:03]}  Rxc8 {[%clk 0:00:14]} 54. Rh7 {[%clk 0:00:04]}  g4 {[%clk 0:00:14]} 55. a4 {[%clk 0:00:05]}  f4 {[%clk 0:00:14]} 56. a5 {[%clk 0:00:05]}  f3 {[%clk 0:00:15]} 57. a6 {[%clk 0:00:05]}  f2 {[%clk 0:00:14]} 58. Rh6+ {[%clk 0:00:05]}  Kg5 {[%clk 0:00:14]} 59. Rxe6 {[%clk 0:00:05]}  f1=Q+ {[%clk 0:00:14]} 0-1


[Site "https://www.chess.com"]

[Event "Titled Tuesday Blitz December 20 Early 2022"]
[White "ChessFanNM"]
[Black "AwareIdea"]
[WhiteElo "2395"]
[BlackElo "2513"]
[Result "1-0"]
[Round "05"]
[TimeControl "180+2"]
[Date "2022.12.20"]
[WhiteClock "0:00:07"]
[BlackClock "0:00:09"]

1. e4 {[%clk 0:02:59]}  e5 {[%clk 0:03:00]} 2. Nf3 {[%clk 0:02:58]}  Nc6 {[%clk 0:03:00]} 3. Nc3 {[%clk 0:02:58]}  Nf6 {[%clk 0:03:00]} 4. Bb5 {[%clk 0:02:58]}  Bd6 {[%clk 0:02:59]} 5. a3 {[%clk 0:02:45]}  O-O {[%clk 0:02:59]} 6. d3 {[%clk 0:02:32]}  h6 {[%clk 0:02:59]} 7. Bxc6 {[%clk 0:02:23]}  dxc6 {[%clk 0:02:58]} 8. g4 {[%clk 0:02:12]}  Bxg4 {[%clk 0:02:57]} 9. Rg1 {[%clk 0:02:10]}  Qd7 {[%clk 0:02:43]} 10. Bxh6 {[%clk 0:02:07]}  gxh6 {[%clk 0:02:33]} 11. h3 {[%clk 0:02:07]}  Kh8 {[%clk 0:02:20]} 12. hxg4 {[%clk 0:02:06]}  Rg8 {[%clk 0:02:20]} 13. Qd2 {[%clk 0:02:01]}  Nxg4 {[%clk 0:02:16]} 14. O-O-O {[%clk 0:01:39]}  Qe6 {[%clk 0:02:10]} 15. Nh4 {[%clk 0:01:34]}  Be7 {[%clk 0:02:09]} 16. Nf3 {[%clk 0:01:23]}  Rg6 {[%clk 0:02:05]} 17. Kb1 {[%clk 0:01:22]}  Rag8 {[%clk 0:02:01]} 18. Rh1 {[%clk 0:01:20]}  Qf6 {[%clk 0:01:55]} 19. Qe2 {[%clk 0:01:16]}  Qf4 {[%clk 0:01:51]} 20. d4 {[%clk 0:01:02]}  exd4 {[%clk 0:01:48]} 21. Rxd4 {[%clk 0:00:54]}  Bf6 {[%clk 0:01:44]} 22. e5 {[%clk 0:00:49]}  Qxd4 {[%clk 0:01:13]} 23. Nxd4 {[%clk 0:00:49]}  Bxe5 {[%clk 0:01:13]} 24. Nf5 {[%clk 0:00:43]}  Re6 {[%clk 0:01:02]} 25. Qf3 {[%clk 0:00:32]}  Rgg6 {[%clk 0:00:57]} 26. Ne4 {[%clk 0:00:25]}  Kg8 {[%clk 0:00:49]} 27. Rh4 {[%clk 0:00:18]}  Nh2 {[%clk 0:00:40]} 28. Qh1 {[%clk 0:00:13]}  Kf8 {[%clk 0:00:33]} 29. Rxh2 {[%clk 0:00:12]}  Bxh2 {[%clk 0:00:32]} 30. Qxh2 {[%clk 0:00:12]}  Rxe4 {[%clk 0:00:31]} 31. Qxc7 {[%clk 0:00:12]}  Re8 {[%clk 0:00:16]} 32. Qxb7 {[%clk 0:00:12]}  Rf6 {[%clk 0:00:15]} 33. Ne3 {[%clk 0:00:11]}  Kg7 {[%clk 0:00:11]} 34. Qxa7 {[%clk 0:00:10]}  h5 {[%clk 0:00:11]} 35. Qd4 {[%clk 0:00:10]}  Re6 {[%clk 0:00:09]} 36. b4 {[%clk 0:00:10]}  Kg6 {[%clk 0:00:10]} 37. Kb2 {[%clk 0:00:10]}  Kg5 {[%clk 0:00:10]} 38. Qd3 {[%clk 0:00:10]}  Rf4 {[%clk 0:00:10]} 39. Qc3 {[%clk 0:00:09]}  h4 {[%clk 0:00:09]} 40. Qc5+ {[%clk 0:00:09]}  Kg6 {[%clk 0:00:08]} 41. Qf8 {[%clk 0:00:08]}  Ref6 {[%clk 0:00:06]} 42. Qg8+ {[%clk 0:00:08]}  Kh5 {[%clk 0:00:07]} 43. Qh8+ {[%clk 0:00:08]}  Kg5 {[%clk 0:00:07]} 44. Qg7+ {[%clk 0:00:07]}  Rg6 {[%clk 0:00:07]} 45. Qh7 {[%clk 0:00:07]}  Rxf2 {[%clk 0:00:06]} 46. Nc4 {[%clk 0:00:05]}  Rf5 {[%clk 0:00:05]} 47. Qh8 {[%clk 0:00:05]}  Kg4 {[%clk 0:00:05]} 48. Ne3+ {[%clk 0:00:03]}  Kg5 {[%clk 0:00:05]} 49. Nxf5 {[%clk 0:00:03]}  Kxf5 {[%clk 0:00:06]} 50. Qxh4 {[%clk 0:00:03]}  f6 {[%clk 0:00:07]} 51. Qf2+ {[%clk 0:00:03]}  Ke6 {[%clk 0:00:07]} 52. Qe3+ {[%clk 0:00:03]}  Kd6 {[%clk 0:00:07]} 53. Qd3+ {[%clk 0:00:03]}  Ke5 {[%clk 0:00:07]} 54. Qxg6 {[%clk 0:00:04]}  f5 {[%clk 0:00:08]} 55. Qf7 {[%clk 0:00:04]}  f4 {[%clk 0:00:08]} 56. a4 {[%clk 0:00:04]}  Kd4 {[%clk 0:00:08]} 57. Qxf4+ {[%clk 0:00:04]}  Kd5 {[%clk 0:00:08]} 58. Qe3 {[%clk 0:00:04]}  Kc4 {[%clk 0:00:09]} 59. Qc3+ {[%clk 0:00:04]}  Kd5 {[%clk 0:00:09]} 60. Qd3+ {[%clk 0:00:05]}  Ke6 {[%clk 0:00:10]} 61. Kb3 {[%clk 0:00:06]}  Ke5 {[%clk 0:00:09]} 62. Kc4 {[%clk 0:00:07]} 1-0


[Site "https://www.chess.com"]

[Event "Titled Tuesday Blitz December 20 Early 2022"]
[White "Cuajada_Zero"]
[Black "Durin, Jean-Pierre"]
[BlackFideId "26026600"]
[WhiteElo "2413"]
[BlackElo "1819"]
[Result "1-0"]
[Round "05"]
[TimeControl "180+2"]
[Date "2022.12.20"]
[WhiteClock "0:00:25"]
[BlackClock "0:01:05"]

1. d4 {[%clk 0:03:00]}  Nf6 {[%clk 0:02:59]} 2. Nf3 {[%clk 0:03:01]}  c5 {[%clk 0:03:00]} 3. d5 {[%clk 0:03:00]}  b5 {[%clk 0:03:00]} 4. c4 {[%clk 0:02:59]}  bxc4 {[%clk 0:03:00]} 5. Nc3 {[%clk 0:02:59]}  d6 {[%clk 0:03:00]} 6. e4 {[%clk 0:02:59]}  Nbd7 {[%clk 0:03:01]} 7. Bxc4 {[%clk 0:02:58]}  g6 {[%clk 0:03:02]} 8. a4 {[%clk 0:02:58]}  Bg7 {[%clk 0:03:02]} 9. a5 {[%clk 0:02:58]}  a6 {[%clk 0:03:01]} 10. O-O {[%clk 0:02:58]}  O-O {[%clk 0:03:01]} 11. h3 {[%clk 0:02:56]}  Rb8 {[%clk 0:02:54]} 12. Qd3 {[%clk 0:02:49]}  Qc7 {[%clk 0:02:36]} 13. Bxa6 {[%clk 0:02:34]}  Bxa6 {[%clk 0:02:37]} 14. Qxa6 {[%clk 0:02:34]}  Ra8 {[%clk 0:02:36]} 15. Qb5 {[%clk 0:02:05]}  Rfb8 {[%clk 0:02:35]} 16. Qa4 {[%clk 0:02:05]}  Rb4 {[%clk 0:02:34]} 17. Qa2 {[%clk 0:01:56]}  Nxe4 {[%clk 0:02:34]} 18. Nxe4 {[%clk 0:01:27]}  Rxe4 {[%clk 0:02:35]} 19. Bd2 {[%clk 0:01:27]}  Ne5 {[%clk 0:02:29]} 20. Nxe5 {[%clk 0:01:23]}  Bxe5 {[%clk 0:02:27]} 21. Bc3 {[%clk 0:01:21]}  Ra6 {[%clk 0:02:20]} 22. f3 {[%clk 0:01:01]}  Re2 {[%clk 0:02:14]} 23. Qc4 {[%clk 0:01:00]}  Bxc3 {[%clk 0:01:49]} 24. bxc3 {[%clk 0:00:59]}  Rxa5 {[%clk 0:01:39]} 25. Rxa5 {[%clk 0:00:57]}  Qxa5 {[%clk 0:01:40]} 26. Qxe2 {[%clk 0:00:57]}  Qxc3 {[%clk 0:01:39]} 27. Qe4 {[%clk 0:00:47]}  f5 {[%clk 0:01:25]} 28. Qe6+ {[%clk 0:00:42]}  Kf8 {[%clk 0:01:25]} 29. Re1 {[%clk 0:00:40]}  Qd4+ {[%clk 0:01:25]} 30. Kh1 {[%clk 0:00:38]}  Qh4 {[%clk 0:01:24]} 31. Rb1 {[%clk 0:00:33]}  Kg7 {[%clk 0:01:17]} 32. Rb7 {[%clk 0:00:29]}  Kf8 {[%clk 0:01:06]} 33. Rb8+ {[%clk 0:00:27]}  Kg7 {[%clk 0:01:06]} 34. Re8 {[%clk 0:00:27]}  Kh6 {[%clk 0:01:03]} 35. Qxe7 {[%clk 0:00:22]}  Qf4 {[%clk 0:01:03]} 36. Qe3 {[%clk 0:00:21]}  Qxe3 {[%clk 0:01:02]} 37. Rxe3 {[%clk 0:00:22]}  Kg5 {[%clk 0:01:02]} 38. Re6 {[%clk 0:00:22]}  c4 {[%clk 0:01:02]} 39. Rxd6 {[%clk 0:00:22]}  Kf4 {[%clk 0:01:03]} 40. Rc6 {[%clk 0:00:22]}  Ke5 {[%clk 0:01:04]} 41. Rxc4 {[%clk 0:00:22]}  Kxd5 {[%clk 0:01:05]} 42. Ra4 {[%clk 0:00:22]}  Ke5 {[%clk 0:01:04]} 43. f4+ {[%clk 0:00:22]}  Kf6 {[%clk 0:01:04]} 44. g4 {[%clk 0:00:23]}  fxg4 {[%clk 0:01:04]} 45. hxg4 {[%clk 0:00:24]}  h5 {[%clk 0:01:05]} 46. Kg2 {[%clk 0:00:21]}  hxg4 {[%clk 0:01:04]} 47. Kg3 {[%clk 0:00:21]}  Kf5 {[%clk 0:01:05]} 48. Ra5+ {[%clk 0:00:21]}  Kf6 {[%clk 0:01:05]} 49. Kxg4 {[%clk 0:00:22]}  Ke6 {[%clk 0:01:06]} 50. Kg5 {[%clk 0:00:22]}  Kf7 {[%clk 0:01:06]} 51. Ra6 {[%clk 0:00:22]}  Kg7 {[%clk 0:01:06]} 52. Ra7+ {[%clk 0:00:22]}  Kf8 {[%clk 0:01:05]} 53. Kxg6 {[%clk 0:00:23]}  Ke8 {[%clk 0:01:05]} 54. Kf6 {[%clk 0:00:23]}  Kd8 {[%clk 0:01:05]} 55. Ke6 {[%clk 0:00:23]}  Kc8 {[%clk 0:01:05]} 56. Kd6 {[%clk 0:00:24]}  Kb8 {[%clk 0:01:05]} 57. Rh7 {[%clk 0:00:24]}  Kc8 {[%clk 0:01:05]} 58. f5 {[%clk 0:00:25]}  Kb8 {[%clk 0:01:05]} 59. Kc6 {[%clk 0:00:25]} 1-0


[Site "https://www.chess.com"]

[Event "Titled Tuesday Blitz December 20 Early 2022"]
[White "DIMONBANAN"]
[Black "Coda, Carlos"]
[BlackFideId "110329"]
[WhiteElo "2416"]
[BlackElo "1971"]
[Result "1-0"]
[Round "05"]
[TimeControl "180+2"]
[Date "2022.12.20"]
[WhiteClock "0:00:33"]
[BlackClock "0:00:31"]

1. e4 {[%clk 0:03:00]}  e6 {[%clk 0:02:43]} 2. d4 {[%clk 0:03:00]}  d5 {[%clk 0:02:43]} 3. Nc3 {[%clk 0:03:00]}  Bb4 {[%clk 0:02:43]} 4. e5 {[%clk 0:03:01]}  Ne7 {[%clk 0:02:42]} 5. a3 {[%clk 0:03:01]}  Bxc3+ {[%clk 0:02:42]} 6. bxc3 {[%clk 0:03:02]}  c5 {[%clk 0:02:43]} 7. h4 {[%clk 0:03:01]}  Nbc6 {[%clk 0:02:43]} 8. h5 {[%clk 0:03:01]}  Qc7 {[%clk 0:02:39]} 9. Nf3 {[%clk 0:03:00]}  Bd7 {[%clk 0:02:38]} 10. h6 {[%clk 0:03:00]}  g6 {[%clk 0:02:38]} 11. Bg5 {[%clk 0:02:59]}  O-O-O {[%clk 0:02:38]} 12. Bf6 {[%clk 0:02:49]}  Rhg8 {[%clk 0:02:38]} 13. Be2 {[%clk 0:02:34]}  cxd4 {[%clk 0:02:25]} 14. cxd4 {[%clk 0:02:34]}  Rde8 {[%clk 0:02:21]} 15. Ng5 {[%clk 0:02:34]}  Nf5 {[%clk 0:02:19]} 16. c3 {[%clk 0:02:26]}  Nd8 {[%clk 0:01:56]} 17. Qd2 {[%clk 0:02:21]}  Ba4 {[%clk 0:01:48]} 18. Nxh7 {[%clk 0:02:17]}  Qc6 {[%clk 0:01:19]} 19. Ng5 {[%clk 0:02:13]}  Rh8 {[%clk 0:01:19]} 20. h7 {[%clk 0:02:06]}  Bb5 {[%clk 0:01:18]} 21. Bxb5 {[%clk 0:01:16]}  Qxb5 {[%clk 0:01:19]} 22. Bxd8 {[%clk 0:01:15]}  Rxd8 {[%clk 0:01:16]} 23. Nxf7 {[%clk 0:01:15]}  Qd7 {[%clk 0:01:09]} 24. Nxd8 {[%clk 0:01:11]}  Kxd8 {[%clk 0:01:10]} 25. Qg5+ {[%clk 0:01:09]}  Kc8 {[%clk 0:01:10]} 26. Qxg6 {[%clk 0:01:09]}  Kb8 {[%clk 0:01:01]} 27. Qg8+ {[%clk 0:01:04]}  Qc8 {[%clk 0:00:59]} 28. Qxc8+ {[%clk 0:00:59]}  Kxc8 {[%clk 0:01:00]} 29. g4 {[%clk 0:00:59]}  Ne7 {[%clk 0:01:00]} 30. Ke2 {[%clk 0:00:56]}  Kd7 {[%clk 0:00:58]} 31. g5 {[%clk 0:00:50]}  Ke8 {[%clk 0:00:58]} 32. Rag1 {[%clk 0:00:49]}  Kf7 {[%clk 0:00:58]} 33. Rh6 {[%clk 0:00:48]}  Ng6 {[%clk 0:00:58]} 34. Rg3 {[%clk 0:00:47]}  Kg7 {[%clk 0:00:50]} 35. Rf3 {[%clk 0:00:46]}  Nf8 {[%clk 0:00:49]} 36. Rff6 {[%clk 0:00:39]}  Nxh7 {[%clk 0:00:48]} 37. Rxe6 {[%clk 0:00:38]}  Kf7 {[%clk 0:00:39]} 38. Rd6 {[%clk 0:00:34]}  Kg7 {[%clk 0:00:30]} 39. Rd7+ {[%clk 0:00:32]}  Kg8 {[%clk 0:00:30]} 40. Rd8+ {[%clk 0:00:33]}  Kg7 {[%clk 0:00:30]} 41. Rxh8 {[%clk 0:00:33]}  Kxh8 {[%clk 0:00:31]} 42. g6 {[%clk 0:00:33]} 1-0


[Site "https://www.chess.com"]

[Event "Titled Tuesday Blitz December 20 Early 2022"]
[White "Dadic, Ivan"]
[Black "Moh, Teng Keong Deon"]
[WhiteFideId "14531364"]
[BlackFideId "5700868"]
[WhiteElo "2080"]
[BlackElo "2215"]
[Result "0-1"]
[Round "05"]
[TimeControl "180+2"]
[Date "2022.12.20"]
[WhiteClock "0:01:28"]
[BlackClock "0:01:49"]

1. e4 {[%clk 0:03:00]}  c6 {[%clk 0:02:15]} 2. d4 {[%clk 0:02:59]}  d5 {[%clk 0:02:16]} 3. exd5 {[%clk 0:02:58]}  cxd5 {[%clk 0:02:16]} 4. c4 {[%clk 0:02:58]}  Nf6 {[%clk 0:02:15]} 5. Nc3 {[%clk 0:02:58]}  e6 {[%clk 0:02:14]} 6. Nf3 {[%clk 0:02:56]}  Bb4 {[%clk 0:02:14]} 7. cxd5 {[%clk 0:02:55]}  Nxd5 {[%clk 0:02:13]} 8. Qc2 {[%clk 0:02:55]}  Nc6 {[%clk 0:02:13]} 9. a3 {[%clk 0:02:53]}  Be7 {[%clk 0:02:12]} 10. Bd3 {[%clk 0:02:51]}  Nf6 {[%clk 0:02:13]} 11. Be3 {[%clk 0:02:40]}  O-O {[%clk 0:02:09]} 12. O-O {[%clk 0:02:40]}  b6 {[%clk 0:02:03]} 13. Rfd1 {[%clk 0:02:35]}  Bb7 {[%clk 0:02:02]} 14. Ne4 {[%clk 0:02:17]}  g6 {[%clk 0:01:53]} 15. Bh6 {[%clk 0:02:10]}  Re8 {[%clk 0:01:52]} 16. Bb5 {[%clk 0:01:42]}  Rc8 {[%clk 0:01:51]} 17. Qa4 {[%clk 0:01:39]}  a6 {[%clk 0:01:51]} 18. Bxa6 {[%clk 0:01:38]}  Ra8 {[%clk 0:01:50]} 19. Nxf6+ {[%clk 0:01:28]}  Bxf6 {[%clk 0:01:49]} 0-1


[Site "https://www.chess.com"]

[Event "Titled Tuesday Blitz December 20 Early 2022"]
[White "Delemarre, Jop"]
[Black "BetonCarlsen"]
[WhiteFideId "1003704"]
[WhiteElo "2391"]
[BlackElo "2216"]
[Result "1-0"]
[Round "05"]
[TimeControl "180+2"]
[Date "2022.12.20"]
[WhiteClock "0:00:15"]
[BlackClock "0:00:01"]

1. e4 {[%clk 0:03:00]}  c6 {[%clk 0:02:35]} 2. d4 {[%clk 0:03:00]}  d5 {[%clk 0:02:28]} 3. e5 {[%clk 0:03:00]}  Bf5 {[%clk 0:02:27]} 4. Nf3 {[%clk 0:03:00]}  e6 {[%clk 0:02:06]} 5. Be2 {[%clk 0:03:00]}  c5 {[%clk 0:02:02]} 6. O-O {[%clk 0:02:59]}  Nc6 {[%clk 0:01:55]} 7. Be3 {[%clk 0:02:51]}  cxd4 {[%clk 0:01:36]} 8. Nxd4 {[%clk 0:02:51]}  Nge7 {[%clk 0:01:34]} 9. Bb5 {[%clk 0:02:50]}  Rc8 {[%clk 0:00:45]} 10. c4 {[%clk 0:02:43]}  a6 {[%clk 0:00:42]} 11. Bxc6+ {[%clk 0:02:32]}  bxc6 {[%clk 0:00:43]} 12. Nc3 {[%clk 0:02:18]}  Bg6 {[%clk 0:00:42]} 13. Qa4 {[%clk 0:02:15]}  Qd7 {[%clk 0:00:20]} 14. Qxa6 {[%clk 0:02:15]}  Bd3 {[%clk 0:00:19]} 15. Rfd1 {[%clk 0:02:09]}  Bxc4 {[%clk 0:00:19]} 16. Qa4 {[%clk 0:02:06]}  Ng6 {[%clk 0:00:19]} 17. b3 {[%clk 0:02:02]}  Bb5 {[%clk 0:00:18]} 18. Ncxb5 {[%clk 0:01:48]}  cxb5 {[%clk 0:00:18]} 19. Nxb5 {[%clk 0:01:43]}  Nxe5 {[%clk 0:00:18]} 20. Bf4 {[%clk 0:01:27]}  Nc6 {[%clk 0:00:17]} 21. Rac1 {[%clk 0:01:16]}  e5 {[%clk 0:00:16]} 22. Bxe5 {[%clk 0:00:59]}  Be7 {[%clk 0:00:12]} 23. Bxg7 {[%clk 0:00:54]}  Rg8 {[%clk 0:00:11]} 24. Be5 {[%clk 0:00:51]}  Rg4 {[%clk 0:00:09]} 25. Qa6 {[%clk 0:00:45]}  Kd8 {[%clk 0:00:07]} 26. Bg3 {[%clk 0:00:38]}  Nb4 {[%clk 0:00:03]} 27. Qb6+ {[%clk 0:00:22]}  Ke8 {[%clk 0:00:03]} 28. Nc7+ {[%clk 0:00:21]}  Kf8 {[%clk 0:00:02]} 29. Qh6+ {[%clk 0:00:18]}  Kg8 {[%clk 0:00:01]} 30. a4 {[%clk 0:00:15]} 1-0


[Site "https://www.chess.com"]

[Event "Titled Tuesday Blitz December 20 Early 2022"]
[White "Devallee, Jeremie"]
[Black "Badlyplayed"]
[WhiteFideId "665240"]
[WhiteElo "2204"]
[BlackElo "2262"]
[Result "1-0"]
[Round "05"]
[TimeControl "180+2"]
[Date "2022.12.20"]
[WhiteClock "0:00:46"]
[BlackClock "0:00:13"]

1. e4 {[%clk 0:02:58]}  c5 {[%clk 0:02:59]} 2. Nf3 {[%clk 0:02:48]}  Nc6 {[%clk 0:02:58]} 3. d4 {[%clk 0:02:47]}  cxd4 {[%clk 0:02:57]} 4. Nxd4 {[%clk 0:02:48]}  Nf6 {[%clk 0:02:57]} 5. Nc3 {[%clk 0:02:48]}  e5 {[%clk 0:02:57]} 6. Ndb5 {[%clk 0:02:47]}  d6 {[%clk 0:02:57]} 7. Bg5 {[%clk 0:02:45]}  a6 {[%clk 0:02:56]} 8. Na3 {[%clk 0:02:45]}  b5 {[%clk 0:02:56]} 9. Nd5 {[%clk 0:02:45]}  Be7 {[%clk 0:02:56]} 10. Bxf6 {[%clk 0:02:46]}  Bxf6 {[%clk 0:02:56]} 11. c3 {[%clk 0:02:47]}  O-O {[%clk 0:02:55]} 12. Nc2 {[%clk 0:02:46]}  Rb8 {[%clk 0:02:55]} 13. Bd3 {[%clk 0:02:37]}  a5 {[%clk 0:02:47]} 14. O-O {[%clk 0:02:28]}  Bg5 {[%clk 0:02:46]} 15. a3 {[%clk 0:02:22]}  Be6 {[%clk 0:02:41]} 16. Qe2 {[%clk 0:01:59]}  Bxd5 {[%clk 0:02:25]} 17. exd5 {[%clk 0:02:00]}  Na7 {[%clk 0:02:20]} 18. Ne3 {[%clk 0:01:43]}  g6 {[%clk 0:02:10]} 19. g3 {[%clk 0:01:36]}  Qb6 {[%clk 0:01:53]} 20. Ng2 {[%clk 0:01:29]}  f5 {[%clk 0:01:49]} 21. Kh1 {[%clk 0:01:29]}  e4 {[%clk 0:01:33]} 22. Bc2 {[%clk 0:01:27]}  b4 {[%clk 0:01:03]} 23. axb4 {[%clk 0:01:22]}  axb4 {[%clk 0:01:01]} 24. c4 {[%clk 0:01:20]}  b3 {[%clk 0:00:58]} 25. Bxb3 {[%clk 0:01:10]}  Qxb3 {[%clk 0:00:53]} 26. Rxa7 {[%clk 0:01:09]}  Qxb2 {[%clk 0:00:51]} 27. Qd1 {[%clk 0:01:07]}  Qb6 {[%clk 0:00:45]} 28. Qa4 {[%clk 0:01:06]}  Rbd8 {[%clk 0:00:15]} 29. h4 {[%clk 0:01:04]}  Bh6 {[%clk 0:00:14]} 30. Qa1 {[%clk 0:00:51]}  f4 {[%clk 0:00:14]} 31. Nxf4 {[%clk 0:00:47]}  Bxf4 {[%clk 0:00:13]} 32. Qg7# {[%clk 0:00:46]} 1-0


[Site "https://www.chess.com"]